fUSD/lending_fUSD_20250221
["ID","MTS","AMOUNT","RATE_DAILY","PERIOD"]
[353979555,1740172269428,-987.72,0.00011696,2]
[353979556,1740172269438,-731.97,0.00011696,2]
[353979557,1740172269448,-500.0,0.00011696,2]
[353979558,1740172269458,-1199.69,0.00011696,2]
[353979559,1740172269468,-1172.47,0.00011696,2]
[353979560,1740172269477,-2284.05,0.00011696,2]
[353979561,1740172269493,-500.0,0.00011696,2]
[353979562,1740172269503,-5314.28,0.00011696,2]
[353979563,1740172269513,-1158.45,0.00011696,2]
[353979564,1740172269523,-588.49,0.00011696,2]
[353979565,1740172269533,-500.0,0.00011696,2]
[353979566,1740172269543,-1637.66,0.00011696,2]
[353979567,1740172269553,-1092.4,0.00011696,2]
[353979568,1740172269562,-500.0,0.00011696,2]
[353979569,1740172269572,-170.990071,0.00011696,2]
[353979570,1740172269582,-1130.79,0.00011696,2]
[353979571,1740172269592,-589.95,0.00011696,2]
[353979572,1740172269602,-961.8,0.00011696,2]
[353979573,1740172269612,-500.0,0.00011696,2]
[353979574,1740172269621,-839.71,0.00011696,2]
[353979575,1740172269630,-500.0,0.00011696,2]
[353979576,1740172269640,-597.77,0.00011696,2]
[353979577,1740172269649,-863.56,0.00011696,2]
[353979578,1740172269659,-2270.11,0.00011696,2]
[353979579,1740172269668,-2553.24,0.00011696,2]
[353979580,1740172269678,-500.0,0.00011696,2]
[353979581,1740172269687,-1389.81,0.00011696,2]
[353979582,1740172269697,-500.0,0.00011696,2]
[353979583,1740172269707,-500.0,0.00011697,2]
[353979584,1740172269716,-519.67,0.00011697,2]
[353979585,1740172269726,-500.0,0.00011697,2]
[353979586,1740172269740,-500.0,0.00011697,2]
[353979587,1740172269749,-500.0,0.00011697,2]
[353979588,1740172269759,-260.63572728,0.00011697,2]
[353979589,1740172269768,-500.0,0.00011697,2]
[353979590,1740172269778,-500.0,0.00011697,2]
[353979591,1740172269788,-500.0,0.00011697,2]
[353979592,1740172269798,-500.0,0.00011697,2]
[353979593,1740172269808,-500.0,0.00011697,2]
[353979594,1740172269817,-500.0,0.00011697,2]
[353979595,1740172269827,-500.0,0.00011697,2]
[353979596,1740172269837,-500.0,0.00011697,2]
[353979597,1740172269846,-500.0,0.00011697,2]
[353979598,1740172269856,-500.0,0.00011697,2]
[353979599,1740172269866,-500.0,0.00011697,2]
[353979600,1740172269876,-500.0,0.00011697,2]
[353979601,1740172269886,-500.0,0.00011698,2]
[353979602,1740172269896,-150.0,0.00011699,2]
[353979603,1740172269906,-152.42810445,0.000117,2]
[353979604,1740172269916,-153.92341115,0.000117,2]
[353979605,1740172269926,-161.59858453,0.000117,2]
[353979606,1740172269935,-500.0,0.000117,2]
[353979607,1740172269945,-800.0,0.000117,4]
[353979608,1740172269954,-981.7276029,0.00011706,2]
[353979609,1740172269963,-150.0,0.00011707,2]
[353979610,1740172269973,-150.0,0.00011717,2]
[353979611,1740172269985,-563058.92055982,0.00011722,2]
[353979612,1740172269995,-150.0,0.00011734,2]
[353979613,1740172270004,-150.0,0.00011735,2]
[353979614,1740172270014,-150.0,0.00011745,2]
[353979615,1740172270024,-7930.84512847,0.00011762,2]
[353979616,1740172270033,-1759.1541253,0.0001177,2]
[353979617,1740172270043,-150.0,0.00011771,2]
[353979618,1740172270053,-150.0,0.00011773,2]
[353979619,1740172270063,-500.0,0.00011777,2]
[353979620,1740172270073,-649.82,0.00011777,2]
[353979621,1740172270083,-622.03,0.00011777,2]
[353979622,1740172270092,-1075.7,0.00011777,2]
[353979623,1740172270102,-855.71,0.00011777,2]
[353979624,1740172270111,-1013.9,0.00011777,2]
[353979625,1740172270121,-1231.28,0.00011777,2]
[353979626,1740172270131,-769.3,0.00011777,2]
[353979627,1740172270141,-500.0,0.00011777,2]
[353979628,1740172270150,-916.53,0.00011777,2]
[353979629,1740172270160,-1480.7,0.00011777,2]
[353979630,1740172270169,-1452.9,0.00011777,2]
[353979631,1740172270179,-1092.95,0.00011777,2]
[353979632,1740172270188,-761.8,0.00011777,2]
[353979633,1740172270198,-931.16,0.00011777,2]
[353979634,1740172270208,-500.0,0.00011777,2]
[353979635,1740172270217,-1001.35,0.00011777,2]
[353979636,1740172270227,-2093.79,0.00011777,2]
[353979637,1740172270434,-591.75,0.00011777,2]
[353979638,1740172270483,-757.37,0.00011777,2]
[353979639,1740172270494,-500.0,0.00011777,2]
[353979640,1740172270503,-1067.6,0.00011777,2]
[353979641,1740172270512,-178.41,0.00011777,2]
[353979642,1740172270522,-500.0,0.00011777,2]
[353979643,1740172270531,-1427.11,0.00011777,2]
[353979644,1740172270541,-782.56,0.00011777,2]
[353979645,1740172270551,-969.96,0.00011777,2]
[353979646,1740172270560,-842.52,0.00011777,2]
[353979647,1740172270570,-830.72,0.00011777,2]
[353979648,1740172270579,-663.66,0.00011777,2]
[353979649,1740172270588,-538.49,0.00011778,2]
[353979650,1740172270598,-500.0,0.00011778,2]
[353979651,1740172270608,-691.94,0.00011778,2]
[353979652,1740172270620,-500.0,0.00011778,2]
[353979653,1740172270632,-644.17,0.00011778,2]
[353979654,1740172270642,-500.0,0.00011778,2]
[353979655,1740172270652,-500.0,0.00011778,2]
[353979656,1740172270663,-667.56,0.00011778,2]
[353979657,1740172270673,-583.3031499,0.00011778,2]
[353979658,1740172270682,-756.41,0.00011778,2]
[353979659,1740172270691,-651.32,0.00011778,2]
[353979660,1740172270700,-500.0,0.00011778,2]
[353979661,1740172270709,-500.0,0.00011778,2]
[353979662,1740172270719,-500.0,0.00011778,2]
[353979663,1740172270728,-552.92,0.00011778,2]
[353979664,1740172270740,-664.1,0.00011778,2]
[353979665,1740172270750,-500.0,0.00011778,2]
[353979666,1740172270759,-500.0,0.00011778,2]
[353979667,1740172270768,-500.0,0.00011778,2]
[353979668,1740172270778,-641.81,0.00011778,2]
[353979669,1740172270788,-500.0,0.00011778,2]
[353979670,1740172270798,-500.0,0.00011778,2]
[353979671,1740172270807,-529.44,0.00011778,2]
[353979672,1740172270816,-500.0,0.00011778,2]
[353979673,1740172270826,-500.0,0.00011778,2]
[353979674,1740172270836,-500.0,0.00011778,2]
[353979675,1740172270846,-580.98,0.00011778,2]
[353979676,1740172270856,-500.0,0.00011778,2]
[353979677,1740172270867,-500.0,0.00011778,2]
[353979678,1740172270878,-656.48,0.00011778,2]
[353979679,1740172270888,-500.0,0.00011778,2]
[353979680,1740172270898,-645.51,0.00011778,2]
[353979681,1740172270907,-500.0,0.00011778,2]
[353979682,1740172270916,-500.0,0.00011778,2]
[353979683,1740172270925,-344.53367813,0.00011778,2]
[353979684,1740172270935,-875.23,0.00011778,2]
[353979685,1740172270944,-819.32,0.00011778,2]
[353979686,1740172270953,-514.61,0.00011778,2]
[353979687,1740172270962,-500.0,0.00011778,2]
[353979688,1740172270972,-681.73,0.00011778,2]
[353979689,1740172270985,-500.0,0.00011778,2]
[353979690,1740172270994,-773.23,0.00011778,2]
[353979691,1740172271004,-500.0,0.00011778,2]
[353979692,1740172271013,-500.0,0.00011778,2]
[353979693,1740172271023,-500.0,0.00011778,2]
[353979694,1740172271032,-500.0,0.00011778,2]
[353979695,1740172271041,-500.0,0.00011778,2]
[353979696,1740172271051,-193.607216,0.00011778,2]
[353979697,1740172271061,-760.5,0.00011778,2]
[353979698,1740172271070,-500.0,0.00011778,2]
[353979699,1740172271080,-565.11,0.00011778,2]
[353979700,1740172271090,-500.0,0.00011778,2]
[353979701,1740172271100,-500.0,0.00011778,2]
[353979702,1740172271109,-703.17,0.00011778,2]
[353979703,1740172271119,-500.0,0.00011778,2]
[353979704,1740172271128,-709.63,0.00011778,2]
[353979705,1740172271138,-562.69,0.00011778,2]
[353979706,1740172271147,-696.24,0.00011778,2]
[353979707,1740172271157,-567.21,0.00011778,2]
[353979708,1740172271166,-500.0,0.00011778,2]
[353979709,1740172271175,-281.23673,0.00011778,2]
[353979710,1740172271184,-694.16,0.00011778,2]
[353979711,1740172271193,-678.43,0.00011778,2]
[353979712,1740172271203,-690.55,0.00011778,2]
[353979713,1740172271213,-500.0,0.00011778,2]
[353979714,1740172271223,-500.0,0.00011778,2]
[353979715,1740172271237,-663.28,0.00011778,2]
[353979716,1740172271246,-500.0,0.00011778,2]
[353979717,1740172271256,-996.53,0.00011778,2]
[353979718,1740172271266,-731.38,0.00011778,2]
[353979719,1740172271275,-500.0,0.00011778,2]
[353979720,1740172271285,-643.91,0.00011778,2]
[353979721,1740172271295,-195.68674994,0.00011778,2]
[353979722,1740172271305,-500.0,0.00011778,2]
[353979723,1740172271316,-500.0,0.00011778,2]
[353979724,1740172271325,-500.0,0.00011778,2]
[353979725,1740172271335,-731.06,0.00011778,2]
[353979726,1740172271345,-500.0,0.00011778,2]
[353979727,1740172271354,-500.0,0.00011778,2]
[353979728,1740172271365,-500.0,0.00011778,2]
[353979729,1740172271375,-710.81,0.00011778,2]
[353979730,1740172271385,-500.6,0.00011778,2]
[353979731,1740172271395,-500.0,0.00011778,2]
[353979732,1740172271406,-624.32,0.00011778,2]
[353979733,1740172271418,-500.0,0.00011778,2]
[353979734,1740172271428,-539.41606894,0.00011778,2]
[353979735,1740172271438,-595.44,0.00011778,2]
[353979736,1740172271448,-500.0,0.00011778,2]
[353979737,1740172271458,-751.36,0.00011778,2]
[353979738,1740172271467,-636.57,0.00011778,2]
[353979739,1740172271477,-500.0,0.00011778,2]
[353979740,1740172271493,-500.0,0.00011778,2]
[353979741,1740172271503,-500.0,0.00011778,2]
[353979742,1740172271513,-893.82,0.00011778,2]
[353979743,1740172271522,-174.831552,0.00011778,2]
[353979744,1740172271532,-500.0,0.00011778,2]
[353979745,1740172271542,-500.0,0.00011778,2]
[353979746,1740172271552,-500.0,0.00011778,2]
[353979747,1740172271562,-587.07,0.00011778,2]
[353979748,1740172271573,-500.0,0.00011778,2]
[353979749,1740172271582,-1704.14,0.00011778,2]
[353979750,1740172271591,-500.0,0.00011778,2]
[353979751,1740172271601,-870.24,0.00011778,2]
[353979752,1740172271610,-523.06,0.00011778,2]
[353979753,1740172271620,-1140.49,0.00011778,2]
[353979754,1740172271630,-1885.94,0.00011778,2]
[353979755,1740172271640,-762.29,0.00011778,2]
[353979756,1740172271650,-985.36,0.00011778,2]
[353979757,1740172271660,-1329.74,0.00011778,2]
[353979758,1740172271669,-1050.0,0.00011778,2]
[353979759,1740172271679,-841.39,0.00011778,2]
[353979760,1740172271689,-500.0,0.00011778,2]
[353979761,1740172271699,-1478.11,0.00011778,2]
[353979762,1740172271710,-1687.94,0.00011778,2]
[353979763,1740172271720,-500.0,0.00011778,2]
[353979764,1740172271730,-1236.11,0.00011778,2]
[353979765,1740172271741,-500.0,0.00011778,2]
[353979766,1740172271751,-527.93,0.00011778,2]
[353979767,1740172271760,-500.0,0.00011778,2]
[353979768,1740172271770,-836.59,0.00011778,2]
[353979769,1740172271780,-1031.57,0.00011778,2]
[353979770,1740172271790,-1035.44,0.00011778,2]
[353979771,1740172271800,-500.0,0.00011778,2]
[353979772,1740172271810,-1245.12,0.00011778,2]
[353979773,1740172271820,-1117.96,0.00011778,2]
[353979774,1740172271832,-1068.45,0.00011778,2]
[353979775,1740172271842,-1183.89,0.00011778,2]
[353979776,1740172271852,-500.0,0.00011778,2]
[353979777,1740172271863,-1056.87,0.00011778,2]
[353979778,1740172271875,-5637.87,0.00011778,2]
[353979779,1740172271886,-797.09,0.00011778,2]
[353979780,1740172271898,-559.58,0.00011778,2]
[353979781,1740172271908,-1352.53,0.00011778,2]
[353979782,1740172271918,-739.7,0.00011778,2]
[353979783,1740172271929,-500.0,0.00011778,2]
[353979784,1740172271939,-1479.65,0.00011778,2]
[353979785,1740172271951,-896.66,0.00011778,2]
[353979786,1740172271962,-500.0,0.00011778,2]
[353979787,1740172271971,-2215.1,0.00011778,2]
[353979788,1740172271984,-1219.06,0.00011778,2]
[353979789,1740172271994,-500.0,0.00011778,2]
[353979790,1740172272004,-1253.82,0.00011778,2]
[353979791,1740172272015,-1134.86,0.00011778,2]
[353979792,1740172272026,-1523.22,0.00011778,2]
[353979793,1740172272036,-500.0,0.00011778,2]
[353979794,1740172272047,-500.0,0.00011778,2]
[353979795,1740172272057,-150.91183758,0.00011778,2]
[353979796,1740172272067,-1190.42,0.00011778,2]
[353979797,1740172272077,-942.8,0.00011778,2]
[353979798,1740172272087,-500.0,0.00011778,2]
[353979799,1740172272097,-500.0,0.00011778,2]
[353979800,1740172272107,-579.37,0.00011778,2]
[353979801,1740172272117,-1258.98,0.00011778,2]
[353979802,1740172272126,-1291.85,0.00011778,2]
[353979803,1740172272136,-500.0,0.00011778,2]
[353979804,1740172272146,-1149.69,0.00011778,2]
[353979805,1740172272156,-661.23,0.00011778,2]
[353979806,1740172272165,-2660.4,0.00011778,2]
[353979807,1740172272175,-1991.69,0.00011778,2]
[353979808,1740172272185,-500.0,0.00011778,2]
[353979809,1740172272194,-614.9,0.00011778,2]
[353979810,1740172272204,-1151.83,0.00011778,2]
[353979811,1740172272214,-500.0,0.00011778,2]
[353979812,1740172272223,-811.74,0.00011778,2]
[353979813,1740172272235,-1450.82,0.00011778,2]
[353979814,1740172272244,-1170.09,0.00011778,2]
[353979815,1740172272254,-500.0,0.00011778,2]
[353979816,1740172272264,-500.0,0.00011778,2]
[353979817,1740172272274,-479.87217067,0.00011778,2]
[353979818,1740172272284,-897.28,0.00011778,2]
[353979819,1740172272293,-1737.05,0.00011778,2]
[353979820,1740172272303,-500.0,0.00011778,2]
[353979821,1740172272313,-853.87,0.00011778,2]
[353979822,1740172272323,-500.0,0.00011778,2]
[353979823,1740172272333,-638.91,0.00011778,2]
[353979824,1740172272343,-511.08,0.00011778,2]
[353979825,1740172272353,-509.7934077,0.00011778,2]
[353979826,1740172272363,-500.0,0.00011778,2]
[353979827,1740172272373,-1229.62,0.00011778,2]
[353979828,1740172272383,-580.46,0.00011778,2]
[353979829,1740172272393,-1513.79,0.00011778,2]
[353979830,1740172272407,-794.55,0.00011778,2]
[353979831,1740172272417,-1136.08,0.00011778,2]
[353979832,1740172272427,-1175.93,0.00011778,2]
[353979833,1740172272436,-500.0,0.00011778,2]
[353979834,1740172272447,-500.0,0.00011778,2]
[353979835,1740172272457,-987.72,0.00011778,2]
[353979836,1740172272467,-731.97,0.00011778,2]
[353979837,1740172272476,-500.0,0.00011778,2]
[353979838,1740172272489,-1199.69,0.00011778,2]
[353979839,1740172272500,-1172.47,0.00011778,2]
[353979840,1740172272510,-2284.05,0.00011778,2]
[353979841,1740172272520,-500.0,0.00011778,2]
[353979842,1740172272529,-5314.28,0.00011778,2]
[353979843,1740172272539,-1158.45,0.00011778,2]
[353979844,1740172272549,-588.49,0.00011778,2]
[353979845,1740172272558,-500.0,0.00011778,2]
[353979846,1740172272568,-1637.66,0.00011778,2]
[353979847,1740172272578,-1092.4,0.00011778,2]
[353979848,1740172272588,-500.0,0.00011778,2]
[353979849,1740172272599,-1130.79,0.00011778,2]
[353979850,1740172272610,-589.95,0.00011778,2]
[353979851,1740172272622,-961.8,0.00011778,2]
[353979852,1740172272631,-500.0,0.00011778,2]
[353979853,1740172272641,-839.71,0.00011778,2]
[353979854,1740172272650,-500.0,0.00011778,2]
[353979855,1740172272660,-597.77,0.00011778,2]
[353979856,1740172272670,-863.56,0.00011778,2]
[353979857,1740172272681,-2270.11,0.00011778,2]
[353979858,1740172272690,-2553.24,0.00011778,2]
[353979859,1740172272699,-500.0,0.00011778,2]
[353979860,1740172272708,-1389.81,0.00011778,2]
[353979861,1740172272718,-200.0,0.00011779,2]
[353979862,1740172272728,-500.0,0.00011779,2]
[353979863,1740172272741,-519.67,0.00011779,2]
[353979864,1740172272752,-500.0,0.00011779,2]
[353979865,1740172272761,-500.0,0.00011779,2]
[353979866,1740172272770,-500.0,0.00011779,2]
[353979867,1740172272780,-500.0,0.00011779,2]
[353979868,1740172272790,-500.0,0.00011779,2]
[353979869,1740172272800,-500.0,0.00011779,2]
[353979870,1740172272811,-500.0,0.00011779,2]
[353979871,1740172272822,-500.0,0.00011779,2]
[353979872,1740172272833,-500.0,0.00011779,2]
[353979873,1740172272844,-500.0,0.00011779,2]
[353979874,1740172272854,-500.0,0.00011779,2]
[353979875,1740172272918,-500.0,0.00011779,2]
[353979876,1740172272927,-500.0,0.00011779,2]
[353979877,1740172272937,-500.0,0.00011779,2]
[353979878,1740172272946,-500.0,0.00011779,2]
[353979879,1740172272956,-4000.0,0.00011779,2]
[353979880,1740172272965,-162.0,0.00011779,3]
[353979881,1740172272974,-500.0,0.0001178,2]
[353979882,1740172272986,-150.0,0.00011787,2]
[353979883,1740172272995,-150.0,0.00011791,2]
[353979884,1740172273005,-508.01344156,0.00011791,2]
[353979885,1740172273014,-1100.0,0.000118,4]
[353979886,1740172273023,-150.0,0.00011803,2]
[353979887,1740172273033,-150.0,0.00011804,2]
[353979888,1740172273043,-4217.13181045,0.00011806,2]
[353979889,1740172273052,-150.0,0.00011807,2]
[353979890,1740172273061,-150.0,0.00011807,2]
[353979891,1740172273071,-500.0,0.00011808,2]
[353979892,1740172273080,-2000.0,0.00011808,2]
[353979893,1740172273089,-200.0,0.00011808,2]
[353979894,1740172273099,-150.0,0.00011809,2]
[353979895,1740172273108,-150.0,0.00011815,2]
[353979896,1740172273117,-150.0,0.00011819,2]
[353979897,1740172273127,-1000.0,0.00011822,2]
[353979898,1740172273135,-150.0,0.00011825,2]
[353979899,1740172273145,-150.0,0.00011827,2]
[353979900,1740172273154,-1000.0,0.00011839,2]
[353979901,1740172273163,-150.0,0.00011841,2]
[353979902,1740172273172,-181.30789695,0.00011842,2]
[353979903,1740172273181,-153.0,0.00011851,2]
[353979904,1740172273190,-153.0,0.00011851,2]
[353979905,1740172273199,-153.0,0.00011851,2]
[353979906,1740172273209,-153.0,0.00011851,2]
[353979907,1740172273218,-153.0,0.00011851,2]
[353979908,1740172273227,-153.0,0.00011851,2]
[353979909,1740172273239,-153.0,0.00011851,2]
[353979910,1740172273248,-153.0,0.00011851,2]
[353979911,1740172273257,-153.0,0.00011851,2]
[353979912,1740172273266,-153.0,0.00011851,2]
[353979913,1740172273275,-8078.3522081,0.00011852,2]
[353979914,1740172273284,-3965.6584309,0.00011852,2]
[353979915,1740172273294,-4830.7387359,0.00011852,2]
[353979916,1740172273303,-150.0,0.00011856,2]
[353979917,1740172273313,-150.0,0.00011857,2]
[353979918,1740172273322,-500.0,0.00011859,2]
[353979919,1740172273332,-649.82,0.00011859,2]
[353979920,1740172273341,-622.03,0.00011859,2]
[353979921,1740172273350,-1075.7,0.00011859,2]
[353979922,1740172273359,-855.71,0.00011859,2]
[353979923,1740172273368,-1013.9,0.00011859,2]
[353979924,1740172273378,-1231.28,0.00011859,2]
[353979925,1740172273387,-769.3,0.00011859,2]
[353979926,1740172273396,-500.0,0.00011859,2]
[353979927,1740172273406,-916.53,0.00011859,2]
[353979928,1740172273419,-1480.7,0.00011859,2]
[353979929,1740172273430,-1452.9,0.00011859,2]
[353979930,1740172273439,-1092.95,0.00011859,2]
[353979931,1740172273450,-761.8,0.00011859,2]
[353979932,1740172273460,-931.16,0.00011859,2]
[353979933,1740172273469,-500.0,0.00011859,2]
[353979934,1740172273479,-1001.35,0.00011859,2]
[353979935,1740172273492,-2093.79,0.00011859,2]
[353979936,1740172273501,-591.75,0.00011859,2]
[353979937,1740172273511,-757.37,0.00011859,2]
[353979938,1740172273521,-500.0,0.00011859,2]
[353979939,1740172273531,-1067.6,0.00011859,2]
[353979940,1740172273540,-500.0,0.00011859,2]
[353979941,1740172273550,-1427.11,0.00011859,2]
[353979942,1740172273560,-782.56,0.00011859,2]
[353979943,1740172273569,-969.96,0.00011859,2]
[353979944,1740172273579,-842.52,0.00011859,2]
[353979945,1740172273589,-830.72,0.00011859,2]
[353979946,1740172273599,-663.66,0.00011859,2]
[353979947,1740172273608,-538.49,0.0001186,2]
[353979948,1740172273618,-500.0,0.0001186,2]
[353979949,1740172273628,-691.94,0.0001186,2]
[353979950,1740172273639,-582.50974482,0.0001186,2]
[353979951,1740172273648,-644.17,0.0001186,2]
[353979952,1740172273658,-500.0,0.0001186,2]
[353979953,1740172273667,-500.0,0.0001186,2]
[353979954,1740172273676,-667.56,0.0001186,2]
[353979955,1740172273685,-756.41,0.0001186,2]
[353979956,1740172273695,-651.32,0.0001186,2]
[353979957,1740172273705,-500.0,0.0001186,2]
[353979958,1740172273715,-500.0,0.0001186,2]
[353979959,1740172273724,-500.0,0.0001186,2]
[353979960,1740172273735,-552.92,0.0001186,2]
[353979961,1740172273745,-664.1,0.0001186,2]
[353979962,1740172273755,-500.0,0.0001186,2]
[353979963,1740172273766,-500.0,0.0001186,2]
[353979964,1740172273775,-500.0,0.0001186,2]
[353979965,1740172273786,-641.81,0.0001186,2]
[353979966,1740172273796,-500.0,0.0001186,2]
[353979967,1740172273806,-500.0,0.0001186,2]
[353979968,1740172273817,-529.44,0.0001186,2]
[353979969,1740172273828,-500.0,0.0001186,2]
[353979970,1740172273839,-595.73993502,0.0001186,2]
[353979971,1740172273849,-500.0,0.0001186,2]
[353979972,1740172273859,-580.98,0.0001186,2]
[353979973,1740172273871,-500.0,0.0001186,2]
[353979974,1740172273881,-343.5155165,0.0001186,2]
[353979975,1740172273893,-656.48,0.0001186,2]
[353979976,1740172273903,-500.0,0.0001186,2]
[353979977,1740172273913,-645.51,0.0001186,2]
[353979978,1740172273924,-500.0,0.0001186,2]
[353979979,1740172273935,-500.0,0.0001186,2]
[353979980,1740172273945,-875.23,0.0001186,2]
[353979981,1740172273956,-819.32,0.0001186,2]
[353979982,1740172273967,-514.61,0.0001186,2]
[353979983,1740172273977,-500.0,0.0001186,2]
[353979984,1740172273988,-681.73,0.0001186,2]
[353979985,1740172273998,-500.0,0.0001186,2]
[353979986,1740172274008,-773.23,0.0001186,2]
[353979987,1740172274018,-500.0,0.0001186,2]
[353979988,1740172274029,-500.0,0.0001186,2]
[353979989,1740172274039,-500.0,0.0001186,2]
[353979990,1740172274050,-500.0,0.0001186,2]
[353979991,1740172274060,-500.0,0.0001186,2]
[353979992,1740172274071,-193.607216,0.0001186,2]
[353979993,1740172274082,-760.5,0.0001186,2]
[353979994,1740172274093,-500.0,0.0001186,2]
[353979995,1740172274102,-565.11,0.0001186,2]
[353979996,1740172274112,-500.0,0.0001186,2]
[353979997,1740172274122,-500.0,0.0001186,2]
[353979998,1740172274132,-703.17,0.0001186,2]
[353979999,1740172274141,-500.0,0.0001186,2]
[353980000,1740172274151,-709.63,0.0001186,2]
[353980001,1740172274161,-562.69,0.0001186,2]
[353980002,1740172274171,-696.24,0.0001186,2]
[353980003,1740172274180,-567.21,0.0001186,2]
[353980004,1740172274190,-500.0,0.0001186,2]
[353980005,1740172274200,-281.23673,0.0001186,2]
[353980006,1740172274212,-694.16,0.0001186,2]
[353980007,1740172274222,-678.43,0.0001186,2]
[353980008,1740172274233,-690.55,0.0001186,2]
[353980009,1740172274243,-500.0,0.0001186,2]
[353980010,1740172274254,-663.28,0.0001186,2]
[353980011,1740172274265,-500.0,0.0001186,2]
[353980012,1740172274275,-996.53,0.0001186,2]
[353980013,1740172274284,-731.38,0.0001186,2]
[353980014,1740172274296,-500.0,0.0001186,2]
[353980015,1740172274306,-643.91,0.0001186,2]
[353980016,1740172274316,-500.0,0.0001186,2]
[353980017,1740172274325,-500.0,0.0001186,2]
[353980018,1740172274334,-731.06,0.0001186,2]
[353980019,1740172274343,-500.0,0.0001186,2]
[353980020,1740172274352,-500.0,0.0001186,2]
[353980021,1740172274362,-500.0,0.0001186,2]
[353980022,1740172274372,-500.0,0.0001186,2]
[353980023,1740172274384,-710.81,0.0001186,2]
[353980024,1740172274394,-500.6,0.0001186,2]
[353980025,1740172274407,-500.0,0.0001186,2]
[353980026,1740172274417,-624.32,0.0001186,2]
[353980027,1740172274428,-500.0,0.0001186,2]
[353980028,1740172274438,-595.44,0.0001186,2]
[353980029,1740172274449,-203.87076084,0.0001186,2]
[353980030,1740172274459,-751.36,0.0001186,2]
[353980031,1740172274469,-636.57,0.0001186,2]
[353980032,1740172274479,-500.0,0.0001186,2]
[353980033,1740172274491,-500.0,0.0001186,2]
[353980034,1740172274501,-500.0,0.0001186,2]
[353980035,1740172274510,-893.82,0.0001186,2]
[353980036,1740172274520,-174.831552,0.0001186,2]
[353980037,1740172274530,-500.0,0.0001186,2]
[353980038,1740172274541,-500.0,0.0001186,2]
[353980039,1740172274550,-500.0,0.0001186,2]
[353980040,1740172274560,-587.07,0.0001186,2]
[353980041,1740172274570,-500.0,0.0001186,2]
[353980042,1740172274581,-1704.14,0.0001186,2]
[353980043,1740172274591,-500.0,0.0001186,2]
[353980044,1740172274602,-870.24,0.0001186,2]
[353980045,1740172274611,-523.06,0.0001186,2]
[353980046,1740172274620,-1140.49,0.0001186,2]
[353980047,1740172274629,-1885.94,0.0001186,2]
[353980048,1740172274638,-762.29,0.0001186,2]
[353980049,1740172274647,-985.36,0.0001186,2]
[353980050,1740172274656,-1329.74,0.0001186,2]
[353980051,1740172274665,-1050.0,0.0001186,2]
[353980052,1740172274675,-841.39,0.0001186,2]
[353980053,1740172274683,-500.0,0.0001186,2]
[353980054,1740172274693,-1478.11,0.0001186,2]